fUST/lending_fUST_20240826
["ID","MTS","AMOUNT","RATE_DAILY","PERIOD"]
[335957964,1724643040922,-500.0,0.00012107,2]
[335957965,1724643040931,-500.0,0.00012107,2]
[335957966,1724643040940,-500.0,0.00012107,2]
[335957967,1724643040950,-500.0,0.00012107,2]
[335957968,1724643040960,-530.52,0.00012107,2]
[335957969,1724643040969,-500.0,0.00012107,2]
[335957970,1724643040981,-500.0,0.00012107,2]
[335957971,1724643040991,-500.0,0.00012107,2]
[335957972,1724643041001,-500.0,0.00012107,2]
[335957973,1724643041011,-500.0,0.00012107,2]
[335957974,1724643041021,-500.0,0.00012107,2]
[335957975,1724643041032,-500.0,0.00012107,2]
[335957976,1724643041042,-500.0,0.00012107,2]
[335957977,1724643041053,-385.97359748,0.00012107,2]
[335957978,1724643041065,-500.0,0.00012107,2]
[335957979,1724643041076,-500.0,0.00012107,2]
[335957980,1724643041092,-500.0,0.00012107,2]
[335957981,1724643041103,-500.0,0.00012107,2]
[335957982,1724643041114,-1147.37,0.00012107,2]
[335957983,1724643041124,-500.0,0.00012107,2]
[335957984,1724643041135,-501.17858701,0.00012107,2]
[335957985,1724643041146,-500.0,0.00012107,2]
[335957986,1724643041156,-500.0,0.00012107,2]
[335957987,1724643041166,-500.0,0.00012107,2]
[335957988,1724643041177,-500.0,0.00012107,2]
[335957989,1724643041187,-500.0,0.00012107,2]
[335957990,1724643041198,-500.0,0.00012107,2]
[335957991,1724643041210,-1136.37,0.00012107,2]
[335957992,1724643041222,-500.0,0.00012107,2]
[335957993,1724643041232,-500.0,0.00012107,2]
[335957994,1724643041246,-500.0,0.00012107,2]
[335957995,1724643041256,-500.0,0.00012107,2]
[335957996,1724643041267,-707.91,0.00012107,2]
[335957997,1724643041276,-500.0,0.00012107,2]
[335957998,1724643041288,-1365.36,0.00012107,2]
[335957999,1724643041298,-500.0,0.00012107,2]
[335958000,1724643041316,-500.0,0.00012107,2]
[335958001,1724643041327,-500.0,0.00012107,2]
[335958002,1724643041338,-500.0,0.00012107,2]
[335958003,1724643041351,-587.31,0.00012107,2]
[335958004,1724643041363,-488.63828028,0.00012107,2]
[335958005,1724643041373,-551.82664872,0.00012107,2]
[335958006,1724643041383,-1111.92,0.00012107,2]
[335958007,1724643041394,-500.0,0.00012107,2]
[335958008,1724643041404,-500.0,0.00012107,2]
[335958009,1724643041414,-500.0,0.00012107,2]
[335958010,1724643041423,-500.0,0.00012107,2]
[335958011,1724643041434,-500.0,0.00012107,2]
[335958012,1724643041444,-1267.99,0.00012107,2]
[335958013,1724643041455,-687.18,0.00012107,2]
[335958014,1724643041465,-500.0,0.00012107,2]
[335958015,1724643041477,-500.0,0.00012107,2]
[335958016,1724643041487,-500.0,0.00012107,2]
[335958017,1724643041498,-608.89,0.00012107,2]
[335958018,1724643041508,-375.43545941,0.00012107,2]
[335958019,1724643041518,-712.0,0.00012107,2]
[335958020,1724643041528,-500.0,0.00012107,2]
[335958021,1724643041537,-550.33,0.00012107,2]
[335958022,1724643041548,-591.91,0.00012107,2]
[335958023,1724643041559,-501.55,0.00012107,2]
[335958024,1724643041571,-500.0,0.00012107,2]
[335958025,1724643041582,-500.0,0.00012107,2]
[335958026,1724643041594,-500.0,0.00012107,2]
[335958027,1724643041606,-500.0,0.00012107,2]
[335958028,1724643041617,-503.83,0.00012107,2]
[335958029,1724643041628,-500.0,0.00012107,2]
[335958030,1724643041638,-500.0,0.00012107,2]
[335958031,1724643041651,-638.65,0.00012107,2]
[335958032,1724643041663,-500.0,0.00012107,2]
[335958033,1724643041672,-156.26293579,0.00012107,2]
[335958034,1724643041684,-620.4,0.00012107,2]
[335958035,1724643041695,-500.0,0.00012107,2]
[335958036,1724643041707,-500.0,0.00012107,2]
[335958037,1724643041717,-500.0,0.00012107,2]
[335958038,1724643041729,-500.0,0.00012107,2]
[335958039,1724643041741,-500.0,0.00012107,2]
[335958040,1724643041754,-500.0,0.00012107,2]
[335958041,1724643041765,-500.0,0.00012107,2]
[335958042,1724643041774,-521.38,0.00012107,2]
[335958043,1724643041784,-546.67,0.00012107,2]
[335958044,1724643041794,-500.0,0.00012107,2]
[335958045,1724643041804,-500.0,0.00012107,2]
[335958046,1724643041813,-500.0,0.00012107,2]
[335958047,1724643041824,-500.0,0.00012107,2]
[335958048,1724643041834,-500.0,0.00012107,2]
[335958049,1724643041844,-500.0,0.00012107,2]
[335958050,1724643041855,-500.0,0.00012107,2]
[335958051,1724643041866,-500.0,0.00012107,2]
[335958052,1724643041875,-500.0,0.00012107,2]
[335958053,1724643041885,-500.0,0.00012107,2]
[335958054,1724643041895,-544.56,0.00012107,2]
[335958055,1724643041904,-500.0,0.00012107,2]
[335958056,1724643041915,-500.0,0.00012107,2]
[335958057,1724643041927,-500.0,0.00012107,2]
[335958058,1724643041940,-500.0,0.00012107,2]
[335958059,1724643041953,-500.0,0.00012107,2]
[335958060,1724643041964,-500.0,0.00012107,2]
[335958061,1724643041973,-500.0,0.00012107,2]
[335958062,1724643041986,-500.0,0.00012107,2]
[335958063,1724643041996,-500.0,0.00012107,2]
[335958064,1724643042006,-500.0,0.00012107,2]
[335958065,1724643042016,-500.0,0.00012107,2]
[335958066,1724643042026,-500.0,0.00012107,2]
[335958067,1724643042036,-500.0,0.00012107,2]
[335958068,1724643042046,-500.0,0.00012107,2]
[335958069,1724643042056,-751.39,0.00012107,2]
[335958070,1724643042066,-500.0,0.00012107,2]
[335958071,1724643042075,-500.0,0.00012107,2]
[335958072,1724643042085,-500.0,0.00012107,2]
[335958073,1724643042095,-503.71410313,0.00012107,2]
[335958074,1724643042105,-509.44,0.00012107,2]
[335958075,1724643042114,-500.0,0.00012107,2]
[335958076,1724643042124,-500.0,0.00012107,2]
[335958077,1724643042134,-500.0,0.00012107,2]
[335958078,1724643042143,-545.51459698,0.00012107,2]
[335958079,1724643042153,-500.0,0.00012107,2]
[335958080,1724643042162,-566.66976765,0.00012107,2]
[335958081,1724643042172,-658.78,0.00012107,2]
[335958082,1724643042181,-500.0,0.00012107,2]
[335958083,1724643042190,-500.0,0.00012107,2]
[335958084,1724643042200,-501.5277892,0.00012107,2]
[335958085,1724643042209,-500.0,0.00012107,2]
[335958086,1724643042219,-500.0,0.00012107,2]
[335958087,1724643042228,-500.0,0.00012107,2]
[335958088,1724643042238,-502.18721855,0.00012107,2]
[335958089,1724643042247,-500.0,0.00012107,2]
[335958090,1724643042257,-500.80567025,0.00012107,2]
[335958091,1724643042266,-501.4248834,0.00012107,2]
[335958092,1724643042276,-501.79541178,0.00012107,2]
[335958093,1724643042285,-500.0,0.00012107,2]
[335958094,1724643042294,-500.40377866,0.00012107,2]
[335958095,1724643042305,-500.0,0.00012107,2]
[335958096,1724643042316,-528.42,0.00012107,2]
[335958097,1724643042326,-500.44270736,0.00012107,2]
[335958098,1724643042335,-154.14502851,0.00012107,2]
[335958099,1724643042346,-891.36,0.00012108,2]
[335958100,1724643042356,-648.56,0.00012108,2]
[335958101,1724643042367,-1098.49,0.00012108,2]
[335958102,1724643042376,-535.41,0.00012108,2]
[335958103,1724643042386,-779.3,0.00012108,2]
[335958104,1724643042397,-500.0,0.00012108,2]
[335958105,1724643042409,-500.0,0.00012108,2]
[335958106,1724643042419,-742.66,0.00012108,2]
[335958107,1724643042428,-500.0,0.00012108,2]
[335958108,1724643042438,-669.56,0.00012108,2]
[335958109,1724643042448,-500.0,0.00012108,2]
[335958110,1724643042458,-500.0,0.00012108,2]
[335958111,1724643042467,-720.35,0.00012108,2]
[335958112,1724643042477,-500.0,0.00012108,2]
[335958113,1724643042487,-536.45,0.00012108,2]
[335958114,1724643042497,-500.0,0.00012108,2]
[335958115,1724643042506,-500.0,0.00012108,2]
[335958116,1724643042516,-869.53,0.00012108,2]
[335958117,1724643042525,-500.0,0.00012108,2]
[335958118,1724643042536,-1146.52,0.00012108,2]
[335958119,1724643042545,-658.97,0.00012108,2]
[335958120,1724643042555,-500.0,0.00012108,2]
[335958121,1724643042565,-500.0,0.00012108,2]
[335958122,1724643042575,-538.19,0.00012108,2]
[335958123,1724643042584,-500.0,0.00012108,2]
[335958124,1724643042594,-1086.13,0.00012108,2]
[335958125,1724643042604,-500.0,0.00012108,2]
[335958126,1724643042613,-500.0,0.00012108,2]
[335958127,1724643042623,-1296.8,0.00012108,2]
[335958128,1724643042632,-1073.17,0.00012108,2]
[335958129,1724643042643,-500.0,0.00012108,2]
[335958130,1724643042652,-500.0,0.00012108,2]
[335958131,1724643042662,-950.45,0.00012108,2]
[335958132,1724643042671,-705.23,0.00012108,2]
[335958133,1724643042681,-526.97,0.00012108,2]
[335958134,1724643042690,-500.0,0.00012108,2]
[335958135,1724643042700,-500.84087238,0.00012108,2]
[335958136,1724643042709,-592.63396042,0.00012108,2]
[335958137,1724643042719,-1043.49,0.00012108,2]
[335958138,1724643042728,-500.0,0.00012108,2]
[335958139,1724643042738,-552.7,0.00012108,2]
[335958140,1724643042748,-1078.34,0.00012108,2]
[335958141,1724643042757,-844.21,0.00012108,2]
[335958142,1724643042767,-897.75,0.00012108,2]
[335958143,1724643042776,-500.0,0.00012108,2]
[335958144,1724643042786,-568.07,0.00012108,2]
[335958145,1724643042795,-500.0,0.00012108,2]
[335958147,1724643042805,-500.0,0.00012108,2]
[335958149,1724643042814,-500.0,0.00012108,2]
[335958151,1724643042824,-500.0,0.00012108,2]
[335958153,1724643042833,-500.0,0.00012108,2]
[335958155,1724643042843,-845.0,0.00012108,2]
[335958156,1724643042852,-1253.91,0.00012108,2]
[335958157,1724643042862,-642.79,0.00012108,2]
[335958158,1724643042872,-1093.67,0.00012108,2]
[335958159,1724643042881,-856.53,0.00012108,2]
[335958160,1724643042890,-500.61707899,0.00012108,2]
[335958161,1724643042900,-1079.05,0.00012108,2]
[335958162,1724643042909,-527.03,0.00012108,2]
[335958163,1724643042918,-817.6,0.00012108,2]
[335958164,1724643042928,-729.71,0.00012108,2]
[335958165,1724643042937,-561.47,0.00012108,2]
[335958166,1724643042947,-571.31,0.00012108,2]
[335958167,1724643042957,-681.91,0.00012108,2]
[335958168,1724643042966,-837.31,0.00012108,2]
[335958170,1724643042977,-1082.59,0.00012108,2]
[335958171,1724643042988,-529.28,0.00012108,2]
[335958172,1724643042999,-500.0,0.00012116,2]
[335958173,1724643043011,-500.0,0.00012118,2]
[335958174,1724643043025,-381.7653579,0.00012118,2]
[335958175,1724643043035,-500.0,0.00012118,2]
[335958176,1724643043046,-533.70271463,0.00012118,2]
[335958177,1724643043056,-500.0,0.00012118,2]
[335958178,1724643043066,-498.95215855,0.00012118,2]
[335958179,1724643043076,-500.0,0.00012154,2]
[335958180,1724643043086,-500.0,0.00012154,2]
[335958181,1724643043095,-500.0,0.00012154,2]
[335958182,1724643043105,-200.4444051,0.00012163,2]
[335958183,1724643043115,-500.0,0.00012164,2]
[335958184,1724643043125,-500.0,0.00012164,2]
[335958204,1724643043372,-500.0,0.00012164,2]
[335958207,1724643043383,-500.0,0.00012164,2]
[335958208,1724643043394,-500.0,0.00012165,2]
[335958210,1724643043405,-543.13,0.00012165,2]
[335958213,1724643043418,-642.75,0.00012165,2]
[335958214,1724643043429,-500.0,0.00012165,2]
[335958216,1724643043439,-500.0,0.00012165,2]
[335958218,1724643043450,-500.0,0.00012165,2]
[335958220,1724643043460,-565.98,0.00012165,2]
[335958223,1724643043471,-500.0,0.00012165,2]
[335958225,1724643043480,-586.51,0.00012165,2]
[335958226,1724643043490,-500.0,0.00012165,2]
[335958229,1724643043500,-752.17,0.00012165,2]
[335958231,1724643043510,-500.0,0.00012165,2]
[335958233,1724643043520,-500.0,0.00012165,2]
[335958235,1724643043530,-500.0,0.00012165,2]
[335958237,1724643043539,-702.93,0.00012165,2]
[335958239,1724643043549,-679.72,0.00012165,2]
[335958241,1724643043560,-828.87,0.00012165,2]
[335958243,1724643043570,-1146.09,0.00012165,2]
[335958245,1724643043579,-500.0,0.00012165,2]
[335958247,1724643043589,-500.0,0.00012165,2]
[335958249,1724643043598,-500.0,0.00012165,2]
[335958251,1724643043607,-301.06174266,0.00012165,2]
[335958253,1724643043617,-641.37,0.00012165,2]
[335958255,1724643043627,-500.0,0.00012165,2]
[335958258,1724643043639,-500.0,0.00012165,2]
[335958260,1724643043650,-568.59,0.00012165,2]
[335958262,1724643043659,-500.0,0.00012165,2]
[335958264,1724643043669,-500.0,0.00012165,2]
[335958266,1724643043682,-500.0,0.00012165,2]
[335958268,1724643043692,-794.77,0.00012165,2]
[335958271,1724643043703,-1272.01,0.00012165,2]
[335958273,1724643043712,-500.0,0.00012165,2]
[335958275,1724643043723,-261.11104018,0.00012165,2]
[335958278,1724643043733,-500.67172314,0.00012165,2]
[335958280,1724643043742,-500.0,0.00012165,2]
[335958282,1724643043752,-530.36907408,0.00012165,2]
[335958284,1724643043763,-500.0,0.00012165,2]
[335958286,1724643043773,-655.11,0.00012165,2]
[335958288,1724643043783,-618.5,0.00012165,2]
[335958291,1724643043793,-500.0,0.00012165,2]
[335958293,1724643043802,-889.44,0.00012165,2]
[335958295,1724643043812,-657.61,0.00012165,2]
[335958297,1724643043822,-772.14,0.00012165,2]
[335958299,1724643043831,-688.32,0.00012165,2]
[335958302,1724643043853,-586.41340868,0.00012165,2]
[335958304,1724643043865,-500.0,0.00012165,2]
[335958307,1724643043878,-500.0,0.00012165,2]
[335958309,1724643043890,-407.71911968,0.00012165,2]
[335958311,1724643043901,-500.0,0.00012165,2]
[335958314,1724643043912,-500.0,0.00012165,2]
[335958316,1724643043924,-500.0,0.00012165,2]
[335958318,1724643043935,-500.0,0.00012165,2]
[335958320,1724643043947,-500.0,0.00012165,2]
[335958322,1724643043958,-1851.29332,0.00012165,2]
[335958324,1724643043970,-1851.29332,0.00012165,2]
[335958327,1724643043980,-1060.620156,0.00012165,2]
[335958329,1724643043990,-1060.620156,0.00012165,2]
[335958331,1724643044001,-167.254161,0.00012173,2]
[335958333,1724643044012,-500.0,0.00012173,2]
[335958335,1724643044022,-696.73290633,0.00012281,2]
[335958337,1724643044034,-384.02617366,0.00012292,2]
[335958339,1724643044045,-3000.0,0.00012293,2]
[335958342,1724643044057,-882.92,0.00012369,2]
[335958344,1724643044068,-8144.62,0.00012369,2]
[335958346,1724643044078,-500.0,0.00012369,2]
[335958348,1724643044088,-500.0,0.00012369,2]
[335958350,1724643044098,-708.94,0.00012369,2]
[335958352,1724643044108,-935.73,0.00012369,2]
[335958354,1724643044119,-500.0,0.00012369,2]
[335958356,1724643044130,-11329.8,0.00012369,2]
[335958358,1724643044140,-566.79,0.00012369,2]
[335958360,1724643044150,-620.38,0.00012369,2]
[335958363,1724643044160,-614.08,0.00012369,2]
[335958365,1724643044171,-500.0,0.00012369,2]
[335958367,1724643044180,-610.76,0.00012369,2]
[335958369,1724643044190,-715.19,0.00012369,2]
[335958371,1724643044200,-3084.28,0.00012369,2]
[335958373,1724643044210,-12568.85,0.0001237,2]
[335958375,1724643044221,-500.0,0.0001237,2]
[335958377,1724643044231,-3333.57,0.0001237,2]
[335958379,1724643044241,-585.87,0.0001237,2]
[335958381,1724643044251,-959.92,0.0001237,2]
[335958383,1724643044262,-4147.97,0.0001237,2]
[335958385,1724643044272,-500.0,0.0001237,2]
[335958387,1724643044282,-1458.87,0.0001237,2]
[335958389,1724643044292,-3113.83,0.0001237,2]
[335958391,1724643044303,-500.0,0.0001237,2]
[335958393,1724643044317,-500.0,0.0001237,2]
[335958395,1724643044327,-500.0,0.0001237,2]
[335958397,1724643044337,-639.78,0.0001237,2]
[335958400,1724643044347,-33463.22,0.0001237,2]
[335958402,1724643044358,-716.31,0.0001237,2]
[335958404,1724643044367,-824.65,0.0001237,2]
[335958406,1724643044377,-505.67,0.0001237,2]
[335958408,1724643044389,-1864.62,0.0001237,2]
[335958410,1724643044400,-572.94,0.0001237,2]
[335958412,1724643044410,-806.09,0.0001237,2]
[335958414,1724643044420,-501.38,0.0001237,2]
[335958416,1724643044430,-1383.81,0.0001237,2]
[335958418,1724643044440,-500.0,0.0001237,2]
[335958420,1724643044450,-528.11,0.0001237,2]
[335958422,1724643044460,-500.0,0.0001237,2]
[335958424,1724643044470,-1521.34,0.0001237,2]
[335958426,1724643044480,-500.0,0.0001237,2]
[335958428,1724643044490,-500.0,0.0001237,2]
[335958430,1724643044500,-500.0,0.0001237,2]
[335958432,1724643044510,-862.59,0.0001237,2]
[335958434,1724643044520,-2687.73,0.0001237,2]
[335958437,1724643044530,-500.0,0.0001237,2]
[335958439,1724643044540,-500.0,0.0001237,2]
[335958440,1724643044550,-500.0,0.0001237,2]
[335958442,1724643044559,-971.72,0.0001237,2]
[335958445,1724643044570,-821.96,0.0001237,2]
[335958447,1724643044579,-686.1,0.0001237,2]
[335958449,1724643044589,-696.22,0.0001237,2]
[335958451,1724643044599,-1225.05,0.0001237,2]
[335958452,1724643044609,-966.21,0.0001237,2]
[335958454,1724643044619,-500.0,0.0001237,2]
[335958456,1724643044630,-932.37,0.00012371,2]
[335958458,1724643044639,-168.82063654,0.00012371,2]
[335958460,1724643044649,-500.0,0.00012371,2]
[335958462,1724643044659,-500.0,0.00012371,2]
[335958465,1724643044668,-500.0,0.00012371,2]
[335958466,1724643044678,-670.27,0.00012371,2]
[335958468,1724643044687,-500.84,0.00012371,2]
[335958470,1724643044697,-500.0,0.00012371,2]
[335958473,1724643044706,-500.0,0.00012371,2]
[335958475,1724643044716,-500.0,0.00012371,2]
[335958477,1724643044726,-500.0,0.00012371,2]
[335958479,1724643044736,-500.0,0.00012371,2]
[335958481,1724643044746,-964.89,0.00012371,2]
[335958482,1724643044755,-1045.08,0.00012371,2]
[335958484,1724643044764,-587.84,0.00012371,2]
[335958486,1724643044774,-500.0,0.00012371,2]
[335958488,1724643044783,-854.3,0.00012371,2]
[335958490,1724643044793,-741.68,0.00012371,2]
[335958492,1724643044803,-857.95,0.00012371,2]
[335958493,1724643044812,-978.77,0.00012371,2]
[335958494,1724643044822,-791.04,0.00012371,2]
[335958495,1724643044832,-500.0,0.00012371,2]
[335958496,1724643044841,-586.6,0.00012371,2]
[335958497,1724643044850,-1204.03,0.00012371,2]
[335958498,1724643044860,-653.55,0.00012371,2]
[335958499,1724643044870,-659.93,0.00012371,2]
[335958500,1724643044880,-500.0,0.00012371,2]
[335958501,1724643044889,-1131.85,0.00012371,2]
[335958502,1724643044899,-505.84,0.00012371,2]
[335958503,1724643044908,-459.96114215,0.00012371,2]
[335958504,1724643044918,-588.29,0.00012371,2]
[335958505,1724643044928,-500.0,0.00012371,2]
[335958506,1724643044937,-500.0,0.00012371,2]
[335958507,1724643044947,-532.62,0.00012371,2]
[335958509,1724643044957,-500.0,0.00012371,2]
[335958511,1724643044968,-500.0,0.00012371,2]
[335958513,1724643044977,-500.0,0.00012371,2]
[335958515,1724643044987,-720.09,0.00012371,2]
[335958517,1724643044997,-1014.91,0.00012371,2]
[335958519,1724643045007,-500.0,0.00012371,2]
[335958521,1724643045017,-516.96607338,0.00012371,2]
[335958523,1724643045027,-606.59,0.00012371,2]
[335958525,1724643045036,-942.62,0.00012371,2]
[335958527,1724643045046,-500.0,0.00012371,2]
[335958529,1724643045056,-683.27,0.00012371,2]
[335958532,1724643045067,-500.0,0.00012371,2]
[335958534,1724643045077,-502.36190259,0.00012371,2]
[335958536,1724643045087,-4144.64,0.00012371,2]
[335958538,1724643045096,-537.33,0.00012371,2]
[335958540,1724643045106,-870.93,0.00012371,2]
[335958542,1724643045116,-767.64,0.00012371,2]
[335958543,1724643045126,-802.98,0.00012371,2]
[335958545,1724643045136,-876.58,0.00012371,2]
[335958547,1724643045147,-607.57,0.00012371,2]
[335958549,1724643045157,-625.73,0.00012371,2]
[335958551,1724643045168,-500.0,0.00012371,2]
[335958552,1724643045178,-500.0,0.00012371,2]
[335958553,1724643045188,-873.32,0.00012371,2]
[335958554,1724643045198,-881.82,0.00012371,2]
[335958555,1724643045208,-767.4,0.00012371,2]
[335958556,1724643045218,-1265.33,0.00012371,2]
[335958557,1724643045228,-500.0,0.00012371,2]
[335958558,1724643045238,-500.0,0.00012371,2]
[335958559,1724643045248,-1042.11,0.00012371,2]
[335958560,1724643045258,-629.36,0.00012371,2]
[335958561,1724643045267,-500.0,0.00012371,2]
[335958562,1724643045276,-1279.92,0.00012371,2]
[335958563,1724643045286,-703.09,0.00012371,2]
[335958564,1724643045296,-500.0,0.00012371,2]
[335958565,1724643045307,-841.58,0.00012371,2]
[335958566,1724643045319,-2490.23,0.00012371,2]
[335958567,1724643045328,-515.88,0.00012371,2]
[335958568,1724643045338,-5828.93,0.00012371,2]
[335958569,1724643045349,-713.76,0.00012371,2]
[335958570,1724643045358,-11005.18,0.00012371,2]
[335958571,1724643045368,-649.61,0.00012371,2]
[335958572,1724643045378,-781.68,0.00012371,2]
[335958573,1724643045389,-500.0,0.00012371,2]
[335958574,1724643045398,-752.28,0.00012371,2]
[335958575,1724643045408,-500.0,0.00012371,2]
[335958576,1724643045418,-535.88,0.00012371,2]
[335958577,1724643045428,-514.78,0.00012371,2]
[335958578,1724643045437,-500.0,0.00012371,2]
[335958579,1724643045447,-500.0,0.00012371,2]
[335958580,1724643045456,-500.0,0.00012371,2]
[335958581,1724643045467,-1182.14,0.00012371,2]
[335958582,1724643045477,-621.15,0.00012371,2]
[335958583,1724643045487,-608.41,0.00012371,2]
[335958584,1724643045497,-500.0,0.00012371,2]
[335958585,1724643045506,-864.4,0.00012371,2]
[335958586,1724643045515,-500.0,0.00012371,2]
[335958587,1724643045525,-500.0,0.00012371,2]
[335958588,1724643045535,-500.0,0.00012373,2]
[335958589,1724643045544,-500.0,0.0001238,2]
[335958590,1724643045555,-500.0,0.00012381,2]
[335958591,1724643045566,-576.55,0.00012381,2]
[335958592,1724643045576,-583.3183481,0.00012381,2]
[335958593,1724643045585,-652.25,0.00012381,2]
[335958594,1724643045596,-500.0,0.00012381,2]
[335958595,1724643045605,-500.0,0.00012381,2]
[335958596,1724643045615,-500.0,0.00012381,2]
[335958597,1724643045624,-500.0,0.00012381,2]
[335958598,1724643045634,-500.0,0.00012381,2]
[335958599,1724643045644,-500.0,0.00012381,2]
[335958600,1724643045654,-522.75,0.00012381,2]
[335958601,1724643045664,-500.0,0.00012381,2]
[335958602,1724643045674,-500.0,0.00012381,2]
[335958603,1724643045684,-566.77,0.00012381,2]
[335958604,1724643045694,-500.0,0.00012381,2]
[335958605,1724643045704,-273.53139726,0.00012381,2]
[335958606,1724643045714,-500.0,0.00012381,2]
[335958607,1724643045723,-163.05606085,0.00012381,2]
[335958608,1724643045732,-500.0,0.00012381,2]
[335958609,1724643045742,-500.0,0.00012381,2]
[335958610,1724643045751,-500.0,0.00012381,2]
[335958611,1724643045762,-500.0,0.00012381,2]
[335958612,1724643045771,-500.0,0.00012381,2]
[335958613,1724643045781,-500.0,0.00012381,2]
[335958614,1724643045791,-500.0,0.00012381,2]
[335958615,1724643045800,-500.0,0.00012381,2]
[335958616,1724643045810,-500.0,0.00012381,2]
[335958617,1724643045820,-660.44,0.00012381,2]
[335958621,1724643045908,-617.38,0.00012381,2]
[335958623,1724643045919,-637.71,0.00012381,2]
[335958624,1724643045928,-500.0,0.00012381,2]
[335958625,1724643045938,-500.0,0.00012381,2]
[335958626,1724643045947,-500.0,0.00012381,2]
[335958627,1724643045956,-500.0,0.00012381,2]
[335958628,1724643045965,-500.0,0.00012381,2]
[335958629,1724643045975,-916.13,0.00012381,2]
[335958630,1724643045984,-500.0,0.00012381,2]
[335958631,1724643045994,-500.0,0.00012381,2]
[335958632,1724643046003,-358.58189356,0.00012381,2]
[335958633,1724643046012,-500.0,0.00012381,2]
[335958634,1724643046021,-500.0,0.00012381,2]
[335958635,1724643046030,-443.21453025,0.00012381,2]
[335958636,1724643046040,-500.0,0.00012381,2]
[335958637,1724643046049,-500.0,0.00012381,2]
[335958638,1724643046059,-500.0,0.00012381,2]
[335958639,1724643046069,-500.0,0.00012381,2]
[335958640,1724643046079,-500.0,0.00012381,2]
[335958641,1724643046088,-500.0,0.00012381,2]
[335958642,1724643046098,-500.0,0.00012381,2]
[335958643,1724643046108,-500.0,0.00012381,2]
[335958645,1724643046118,-500.0,0.00012381,2]
[335958647,1724643046127,-500.0,0.00012381,2]
[335958649,1724643046137,-500.0,0.00012381,2]
[335958650,1724643046147,-500.0,0.00012381,2]
[335958651,1724643046156,-500.0,0.00012381,2]
[335958652,1724643046165,-500.0,0.00012381,2]
[335958653,1724643046175,-500.0,0.00012381,2]
[335958654,1724643046184,-530.52,0.00012381,2]
[335958655,1724643046194,-277.641212,0.00012381,2]
[335958656,1724643046204,-500.0,0.00012381,2]
[335958657,1724643046215,-500.0,0.00012381,2]
[335958658,1724643046226,-226.68280265,0.00012381,2]
[335958659,1724643046235,-500.0,0.00012381,2]
[335958660,1724643046246,-500.0,0.00012381,2]
[335958661,1724643046257,-500.0,0.00012381,2]
[335958662,1724643046267,-500.0,0.00012381,2]
[335958663,1724643046276,-500.0,0.00012381,2]
[335958664,1724643046286,-594.58425863,0.00012381,2]
[335958665,1724643046295,-500.0,0.00012381,2]
[335958666,1724643046307,-1147.37,0.00012381,2]
[335958667,1724643046324,-500.0,0.00012381,2]